[Event "Live Chess"]
[Site "Chess.com"]
[Date "2023.05.21"]
[Round "-"]
[White "blunderabit"]
[Black "Richardallis"]
[Result "1/2-1/2"]
[WhiteElo "1814"]
[BlackElo "1879"]
[TimeControl "300"]
[EndTime "0:41:14 PDT"]
[Termination "Game drawn - insufficient material"]

1. e4 {[%clk 0:04:57.9]} 1... d5 {[%clk 0:04:58.5]} 2. exd5 {[%clk 0:04:56.5]}
2... Nf6 {[%clk 0:04:57.2]} 3. Bb5+ {[%clk 0:04:54.1]} 3... Bd7 {[%clk
0:04:55.9]} 4. Bc4 {[%clk 0:04:52.3]} 4... Bg4 {[%clk 0:04:54.8]} 5. f3 {[%clk
0:04:51.3]} 5... Bf5 {[%clk 0:04:53.9]} 6. Nc3 {[%clk 0:04:31.9]} 6... a6 {[%clk
0:04:51.9]} 7. a4 {[%clk 0:04:24.9]} 7... Nbd7 {[%clk 0:04:50.5]} 8. d3 {[%clk
0:04:00.1]} 8... Nb6 {[%clk 0:04:47.9]} 9. g4 {[%clk 0:03:45.5]} 9... Bg6 {[%clk
0:04:46.4]} 10. h4 {[%clk 0:03:38.9]} 10... h6 {[%clk 0:04:45.1]} 11. Qe2 {[%clk
0:03:18.3]} 11... Nfxd5 {[%clk 0:04:43.4]} 12. Nh3 {[%clk 0:03:08]} 12... Nxc3
{[%clk 0:04:39.7]} 13. bxc3 {[%clk 0:03:05.7]} 13... Nxc4 {[%clk 0:04:38.7]} 14.
dxc4 {[%clk 0:03:04.4]} 14... e6 {[%clk 0:04:37.2]} 15. Nf4 {[%clk 0:03:02.4]}
15... Bh7 {[%clk 0:04:36]} 16. Be3 {[%clk 0:02:52]} 16... Be7 {[%clk 0:04:31.1]}
17. h5 {[%clk 0:02:47]} 17... Bf6 {[%clk 0:04:29.9]} 18. Rd1 {[%clk 0:02:32.7]}
18... Bxc3+ {[%clk 0:04:25.3]} 19. Kf2 {[%clk 0:02:31.3]} 19... Qe7 {[%clk
0:04:22.3]} 20. Rb1 {[%clk 0:02:15.1]} 20... b6 {[%clk 0:04:15.7]} 21. Rhd1
{[%clk 0:02:04.7]} 21... O-O {[%clk 0:04:13]} 22. Kg2 {[%clk 0:02:02.5]} 22...
Rfd8 {[%clk 0:04:10.3]} 23. Bf2 {[%clk 0:01:57.1]} 23... a5 {[%clk 0:04:03.8]}
24. Nd5 {[%clk 0:01:48.2]} 24... Rxd5 {[%clk 0:03:47.2]} 25. cxd5 {[%clk
0:01:46.2]} 25... Re8 {[%clk 0:03:39.7]} 26. Qc4 {[%clk 0:01:42.7]} 26... Bxc2
{[%clk 0:03:29.4]} 27. Qxc3 {[%clk 0:01:39.7]} 27... Bxb1 {[%clk 0:03:26.3]} 28.
Rxb1 {[%clk 0:01:39.1]} 28... exd5 {[%clk 0:03:25.7]} 29. Re1 {[%clk 0:01:35.6]}
29... Qd7 {[%clk 0:03:22]} 30. Rxe8+ {[%clk 0:01:33.1]} 30... Qxe8 {[%clk
0:03:21.4]} 31. Qxc7 {[%clk 0:01:31.6]} 31... Qxa4 {[%clk 0:03:20.9]} 32. Qd8+
{[%clk 0:01:25.9]} 32... Kh7 {[%clk 0:03:18.9]} 33. Qxd5 {[%clk 0:01:25.5]}
33... b5 {[%clk 0:03:02.4]} 34. Qxf7 {[%clk 0:01:23.5]} 34... Qc4 {[%clk
0:02:59.4]} 35. Qg6+ {[%clk 0:01:11.9]} 35... Kg8 {[%clk 0:02:57.2]} 36. Qe8+
{[%clk 0:01:08.3]} 36... Kh7 {[%clk 0:02:55.8]} 37. Qe4+ {[%clk 0:01:04.8]}
37... Qxe4 {[%clk 0:02:54.1]} 38. fxe4 {[%clk 0:01:03.7]} 38... b4 {[%clk
0:02:52.7]} 39. Bc5 {[%clk 0:00:58.3]} 39... Kg8 {[%clk 0:02:49.7]} 40. Kf2
{[%clk 0:00:56.7]} 40... Kf7 {[%clk 0:02:49]} 41. Ke3 {[%clk 0:00:55.4]} 41...
Ke6 {[%clk 0:02:48.5]} 42. Kd4 {[%clk 0:00:51.6]} 42... Kf6 {[%clk 0:02:46.6]}
43. e5+ {[%clk 0:00:45.1]} 43... Ke6 {[%clk 0:02:45.3]} 44. Bd6 {[%clk
0:00:36.4]} 44... b3 {[%clk 0:02:44.5]} 45. Kc3 {[%clk 0:00:34.7]} 45... a4
{[%clk 0:02:43.8]} 46. Kb2 {[%clk 0:00:33.6]} 46... Kd5 {[%clk 0:02:42.9]} 47.
Ka3 {[%clk 0:00:31.9]} 47... Ke6 {[%clk 0:02:42.4]} 48. Kb2 {[%clk 0:00:27.5]}
48... Kd5 {[%clk 0:02:41.7]} 49. Bf8 {[%clk 0:00:21.5]} 49... Kxe5 {[%clk
0:02:37.3]} 50. Bxg7+ {[%clk 0:00:20.1]} 50... Kf4 {[%clk 0:02:36.8]} 51. Ka3
{[%clk 0:00:10.1]} 51... Kxg4 {[%clk 0:02:34.8]} 52. Kxa4 {[%clk 0:00:08.6]}
52... b2 {[%clk 0:02:32.4]} 53. Bxb2 {[%clk 0:00:07]} 53... Kxh5 {[%clk
0:02:31.9]} 54. Bc1 {[%clk 0:00:04.9]} 54... Kg6 {[%clk 0:02:30.4]} 55. Bxh6
{[%clk 0:00:04.5]} 1/2-1/2

[Event "Live Chess"]
[Site "Chess.com"]
[Date "2023.05.21"]
[Round "-"]
[White "JoeRoot66"]
[Black "chessfiction"]
[Result "0-1"]
[WhiteElo "1923"]
[BlackElo "2356"]
[TimeControl "300"]
[EndTime "0:41:23 PDT"]
[Termination "chessfiction won by resignation"]

1. e4 {[%clk 0:04:59.3]} 1... d5 {[%clk 0:04:58.5]} 2. exd5 {[%clk 0:04:57.8]}
2... c6 {[%clk 0:04:57.9]} 3. d4 {[%clk 0:04:56.7]} 3... Nf6 {[%clk 0:04:56.1]}
4. Nf3 {[%clk 0:04:55.8]} 4... cxd5 {[%clk 0:04:53.3]} 5. Bd3 {[%clk 0:04:54.2]}
5... Nc6 {[%clk 0:04:53.2]} 6. c3 {[%clk 0:04:53.4]} 6... Bg4 {[%clk 0:04:52.8]}
7. h3 {[%clk 0:04:51.8]} 7... Bh5 {[%clk 0:04:51.5]} 8. O-O {[%clk 0:04:50.6]}
8... Qc7 {[%clk 0:04:50.3]} 9. Re1 {[%clk 0:04:49.5]} 9... O-O-O {[%clk
0:04:49.1]} 10. Nbd2 {[%clk 0:04:46.7]} 10... g5 {[%clk 0:04:35.4]} 11. Nf1
{[%clk 0:04:44.4]} 11... g4 {[%clk 0:04:30.5]} 12. Bf5+ {[%clk 0:04:36.7]} 12...
e6 {[%clk 0:04:28.8]} 13. Bxg4 {[%clk 0:04:35.6]} 13... Nxg4 {[%clk 0:04:27.8]}
14. hxg4 {[%clk 0:04:35.5]} 14... Bxg4 {[%clk 0:04:27.6]} 15. Qd3 {[%clk
0:04:30.4]} 15... Rg8 {[%clk 0:04:21.5]} 16. N1h2 {[%clk 0:04:22]} 16... h5
{[%clk 0:04:16.7]} 17. g3 {[%clk 0:04:20.1]} 17... Bf5 {[%clk 0:04:15.3]} 18.
Qe2 {[%clk 0:04:16.2]} 18... Bd6 {[%clk 0:04:11.5]} 19. Ne5 {[%clk 0:04:11.9]}
19... f6 {[%clk 0:04:06.8]} 20. Nxc6 {[%clk 0:04:06.6]} 20... Bxg3 {[%clk
0:04:04.6]} 21. fxg3 {[%clk 0:03:59.2]} 21... Qxg3+ {[%clk 0:04:01.8]} 22. Kh1
{[%clk 0:03:58.5]} 22... Be4+ {[%clk 0:04:00.1]} 23. Qxe4 {[%clk 0:03:57.7]}
23... dxe4 {[%clk 0:03:59.9]} 24. Ne7+ {[%clk 0:03:56.4]} 24... Kd7 {[%clk
0:03:57.8]} 25. Nxg8 {[%clk 0:03:56.3]} 25... Qxe1+ {[%clk 0:03:56.3]} 26. Kg2
{[%clk 0:03:55.2]} 26... Rxg8+ {[%clk 0:03:56.2]} 0-1

[Event "Live Chess"]
[Site "Chess.com"]
[Date "2023.05.21"]
[Round "-"]
[White "Doge_Dandolo"]
[Black "WelshTiger"]
[Result "1/2-1/2"]
[WhiteElo "1905"]
[BlackElo "2352"]
[TimeControl "300"]
[EndTime "0:41:29 PDT"]
[Termination "Game drawn by repetition"]

1. Nf3 {[%clk 0:04:56.1]} 1... c5 {[%clk 0:04:53.1]} 2. c4 {[%clk 0:04:54.7]}
2... Nf6 {[%clk 0:04:51.1]} 3. g3 {[%clk 0:04:46.9]} 3... g6 {[%clk 0:04:48.9]}
4. Bg2 {[%clk 0:04:43.9]} 4... Bg7 {[%clk 0:04:48.2]} 5. Nc3 {[%clk 0:04:43.5]}
5... O-O {[%clk 0:04:45.9]} 6. O-O {[%clk 0:04:42.2]} 6... d6 {[%clk 0:04:39.6]}
7. d4 {[%clk 0:04:40.9]} 7... cxd4 {[%clk 0:04:37]} 8. Nxd4 {[%clk 0:04:39.2]}
8... Nbd7 {[%clk 0:04:36.2]} 9. h3 {[%clk 0:04:35.7]} 9... a6 {[%clk 0:04:35.5]}
10. Be3 {[%clk 0:04:33.8]} 10... Nc5 {[%clk 0:04:27.5]} 11. Rc1 {[%clk
0:04:30.9]} 11... Ne6 {[%clk 0:04:22]} 12. Nd5 {[%clk 0:04:20.9]} 12... Nxd5
{[%clk 0:04:19.2]} 13. cxd5 {[%clk 0:04:18.5]} 13... Nxd4 {[%clk 0:04:15.8]} 14.
Bxd4 {[%clk 0:04:17.2]} 14... Bxd4 {[%clk 0:04:12]} 15. Qxd4 {[%clk 0:04:15.9]}
15... Bd7 {[%clk 0:04:11.7]} 16. Rc3 {[%clk 0:04:14.4]} 16... Rc8 {[%clk
0:04:10.1]} 17. Rfc1 {[%clk 0:04:12.8]} 17... Qa5 {[%clk 0:04:07.2]} 18. a3
{[%clk 0:04:05.2]} 18... Rxc3 {[%clk 0:04:06.2]} 19. Rxc3 {[%clk 0:04:03.5]}
19... Rc8 {[%clk 0:04:05.6]} 20. Rxc8+ {[%clk 0:04:00.7]} 20... Bxc8 {[%clk
0:04:05.5]} 21. Kh2 {[%clk 0:03:58.5]} 21... Bd7 {[%clk 0:04:03.6]} 22. Qc4
{[%clk 0:03:52.2]} 22... Kf8 {[%clk 0:03:37.3]} 23. Qc1 {[%clk 0:03:46.4]} 23...
Kg7 {[%clk 0:03:33.9]} 24. b4 {[%clk 0:03:42.8]} 24... Qb6 {[%clk 0:03:30]} 25.
Kg1 {[%clk 0:03:37.9]} 25... f6 {[%clk 0:03:18.3]} 26. h4 {[%clk 0:03:34.4]}
26... a5 {[%clk 0:03:16.2]} 27. Qc3 {[%clk 0:03:32.6]} 27... axb4 {[%clk
0:03:14.6]} 28. axb4 {[%clk 0:03:31.6]} 28... h5 {[%clk 0:02:59.4]} 29. Bf3
{[%clk 0:03:27.9]} 29... Bf5 {[%clk 0:02:55.2]} 30. e4 {[%clk 0:03:19.2]} 30...
Bd7 {[%clk 0:02:53.7]} 31. Be2 {[%clk 0:03:10.4]} 31... Qd8 {[%clk 0:02:50.4]}
32. Kg2 {[%clk 0:03:05.2]} 32... Qc8 {[%clk 0:02:49.4]} 33. Qxc8 {[%clk
0:03:03]} 33... Bxc8 {[%clk 0:02:49.3]} 34. Bb5 {[%clk 0:03:01.2]} 34... f5
{[%clk 0:02:47.9]} 35. f3 {[%clk 0:02:58.7]} 35... fxe4 {[%clk 0:02:45]} 36.
fxe4 {[%clk 0:02:57.7]} 36... Kf6 {[%clk 0:02:44.8]} 37. Kf2 {[%clk 0:02:56.5]}
37... g5 {[%clk 0:02:43.2]} 38. Be8 {[%clk 0:02:47.2]} 38... gxh4 {[%clk
0:02:40.2]} 39. gxh4 {[%clk 0:02:45.6]} 39... Bg4 {[%clk 0:02:39.3]} 40. Ke3
{[%clk 0:02:44]} 40... Ke5 {[%clk 0:02:38.7]} 41. b5 {[%clk 0:02:39.5]} 41... b6
{[%clk 0:02:37.4]} 42. Bc6 {[%clk 0:02:29.5]} 42... e6 {[%clk 0:02:22.8]} 43.
dxe6 {[%clk 0:02:27.4]} 43... Bxe6 {[%clk 0:02:22.7]} 44. Be8 {[%clk 0:02:24.9]}
44... Bg4 {[%clk 0:02:21.9]} 45. Bc6 {[%clk 0:02:23.4]} 45... Bd1 {[%clk
0:02:19.6]} 46. Be8 {[%clk 0:02:21.5]} 46... Bg4 {[%clk 0:02:08.6]} 47. Bc6
{[%clk 0:02:19.5]} 47... Be6 {[%clk 0:01:59]} 48. Be8 {[%clk 0:02:16.8]} 48...
Bg4 {[%clk 0:01:57.6]} 1/2-1/2

[Event "Live Chess"]
[Site "Chess.com"]
[Date "2023.05.21"]
[Round "-"]
[White "Bot_Boy"]
[Black "Long1968"]
[Result "0-1"]
[WhiteElo "334"]
[BlackElo "1012"]
[TimeControl "300"]
[EndTime "0:41:46 PDT"]
[Termination "Long1968 won on time"]

1. e4 {[%clk 0:04:57.6]} 1... e6 {[%clk 0:04:57.7]} 2. Nf3 {[%clk 0:04:56.8]}
2... d5 {[%clk 0:04:53.9]} 3. e5 {[%clk 0:04:51.5]} 3... c5 {[%clk 0:04:49.7]}
4. Bb5+ {[%clk 0:04:50]} 4... Nc6 {[%clk 0:04:44.6]} 5. Bxc6+ {[%clk 0:04:47.1]}
5... bxc6 {[%clk 0:04:41.7]} 6. d4 {[%clk 0:04:44.4]} 6... Ba6 {[%clk
0:04:35.1]} 7. Be3 {[%clk 0:04:34.4]} 7... Qb6 {[%clk 0:04:20.4]} 8. b3 {[%clk
0:04:09.8]} 8... c4 {[%clk 0:03:53.7]} 9. Nc3 {[%clk 0:03:35.9]} 9... cxb3
{[%clk 0:03:41.2]} 10. axb3 {[%clk 0:03:25.4]} 10... Bb4 {[%clk 0:03:31.7]} 11.
Bd2 {[%clk 0:02:57.7]} 11... Ne7 {[%clk 0:03:14.2]} 12. Na4 {[%clk 0:02:32.6]}
12... Bxd2+ {[%clk 0:02:53.7]} 13. Qxd2 {[%clk 0:02:10]} 13... Qc7 {[%clk
0:02:26.5]} 14. Nc5 {[%clk 0:01:55.8]} 14... Bb5 {[%clk 0:02:18.1]} 15. Na6
{[%clk 0:00:54.4]} 15... Qb6 {[%clk 0:02:11.8]} 16. Qa5 {[%clk 0:00:40.3]} 16...
O-O {[%clk 0:01:53.4]} 17. Qxb6 {[%clk 0:00:37.1]} 17... axb6 {[%clk 0:01:48.6]}
18. Kd2 {[%clk 0:00:23.5]} 18... Rxa6 {[%clk 0:01:42.4]} 19. Rxa6 {[%clk
0:00:17.5]} 19... Bxa6 {[%clk 0:01:39.7]} 20. Ne1 {[%clk 0:00:13.1]} 20... Ra8
{[%clk 0:01:34.9]} 21. Nd3 {[%clk 0:00:09.5]} 21... Bxd3 {[%clk 0:01:30.2]} 22.
cxd3 {[%clk 0:00:07.5]} 22... Nf5 {[%clk 0:01:26]} 23. Rc1 {[%clk 0:00:04.5]}
23... Nxd4 {[%clk 0:01:20.6]} 24. Rc3 {[%clk 0:00:00.2]} 24... c5 {[%clk
0:01:10.7]} 0-1

[Event "Live Chess"]
[Site "Chess.com"]
[Date "2023.05.21"]
[Round "-"]
[White "mattihelenius2"]
[Black "smoggyrabbit"]
[Result "0-1"]
[WhiteElo "493"]
[BlackElo "1726"]
[TimeControl "300"]
[EndTime "0:42:05 PDT"]
[Termination "smoggyrabbit won by checkmate"]

1. d4 {[%clk 0:04:57]} 1... e6 {[%clk 0:04:58.8]} 2. e4 {[%clk 0:04:56.3]} 2...
d5 {[%clk 0:04:57.2]} 3. Nc3 {[%clk 0:04:53]} 3... Nf6 {[%clk 0:04:55.2]} 4. Be3
{[%clk 0:04:52]} 4... dxe4 {[%clk 0:04:48.3]} 5. Bb5+ {[%clk 0:04:46.4]} 5... c6
{[%clk 0:04:46.5]} 6. Ba4 {[%clk 0:04:43.2]} 6... Bb4 {[%clk 0:04:45]} 7. Qd2
{[%clk 0:04:40.7]} 7... O-O {[%clk 0:04:40.3]} 8. a3 {[%clk 0:04:38.2]} 8...
Bxc3 {[%clk 0:04:34]} 9. Qxc3 {[%clk 0:04:37.2]} 9... Nbd7 {[%clk 0:04:25.7]}
10. Ne2 {[%clk 0:04:28.6]} 10... Nb6 {[%clk 0:04:21.5]} 11. b3 {[%clk
0:04:24.4]} 11... Nxa4 {[%clk 0:04:09.8]} 12. bxa4 {[%clk 0:04:22.7]} 12... Nd5
{[%clk 0:04:08.2]} 13. Qc5 {[%clk 0:04:17.7]} 13... Nxe3 {[%clk 0:04:05.4]} 14.
fxe3 {[%clk 0:04:16.1]} 14... Bd7 {[%clk 0:03:57]} 15. Rf1 {[%clk 0:04:13.4]}
15... b5 {[%clk 0:03:48.4]} 16. Nf4 {[%clk 0:04:11.5]} 16... bxa4 {[%clk
0:03:38.4]} 17. Nh5 {[%clk 0:04:10.1]} 17... f5 {[%clk 0:03:16.7]} 18. Qe5
{[%clk 0:04:07.8]} 18... Qg5 {[%clk 0:03:03.2]} 19. Qxg7+ {[%clk 0:04:05.9]}
19... Qxg7 {[%clk 0:03:01.8]} 20. Nxg7 {[%clk 0:04:04.1]} 20... Kxg7 {[%clk
0:03:01.7]} 21. Rb1 {[%clk 0:03:44.1]} 21... Rab8 {[%clk 0:02:59.3]} 22. Rxb8
{[%clk 0:03:42.4]} 22... Rxb8 {[%clk 0:02:57.3]} 23. Kd2 {[%clk 0:03:41.3]}
23... Kf6 {[%clk 0:02:48.5]} 24. c4 {[%clk 0:03:39.6]} 24... e5 {[%clk
0:02:46.7]} 25. dxe5+ {[%clk 0:03:37.4]} 25... Kxe5 {[%clk 0:02:45.4]} 26. Kc3
{[%clk 0:03:36.7]} 26... Rb3+ {[%clk 0:02:43.3]} 27. Kc2 {[%clk 0:03:34.7]}
27... Rxa3 {[%clk 0:02:39.5]} 28. Rb1 {[%clk 0:03:30.6]} 28... Rxe3 {[%clk
0:02:32.1]} 29. Rb7 {[%clk 0:03:29.5]} 29... Be6 {[%clk 0:02:26.3]} 30. Rxa7
{[%clk 0:03:28.6]} 30... a3 {[%clk 0:02:23.1]} 31. Rxh7 {[%clk 0:03:24.9]} 31...
Bxc4 {[%clk 0:02:20.2]} 32. Kb1 {[%clk 0:03:21.5]} 32... a2+ {[%clk 0:02:13.1]}
33. Ka1 {[%clk 0:03:18.6]} 33... Re1+ {[%clk 0:02:12.2]} 34. Kb2 {[%clk
0:03:16.7]} 34... a1=Q+ {[%clk 0:02:11]} 35. Kc2 {[%clk 0:03:14.2]} 35... Qc1#
{[%clk 0:02:09.5]} 0-1

[Event "Live Chess"]
[Site "Chess.com"]
[Date "2023.05.21"]
[Round "-"]
[White "BostonStrangler"]
[Black "Ferrarifan27"]
[Result "1-0"]
[WhiteElo "2066"]
[BlackElo "2072"]
[TimeControl "300"]
[EndTime "0:42:21 PDT"]
[Termination "BostonStrangler won by resignation"]

1. Nf3 {[%clk 0:04:57.7]} 1... Nf6 {[%clk 0:04:57.8]} 2. g3 {[%clk 0:04:56.6]}
2... d5 {[%clk 0:04:56.5]} 3. Bg2 {[%clk 0:04:56]} 3... Bf5 {[%clk 0:04:54.6]}
4. d3 {[%clk 0:04:52.9]} 4... e6 {[%clk 0:04:51.6]} 5. c4 {[%clk 0:04:51.9]}
5... c6 {[%clk 0:04:50]} 6. Qb3 {[%clk 0:04:50]} 6... Qb6 {[%clk 0:04:47.6]} 7.
O-O {[%clk 0:04:47.2]} 7... Nbd7 {[%clk 0:04:43.3]} 8. Be3 {[%clk 0:04:44.8]}
8... Qxb3 {[%clk 0:04:38]} 9. axb3 {[%clk 0:04:43.6]} 9... c5 {[%clk 0:04:37]}
10. Nh4 {[%clk 0:04:32.4]} 10... Bg4 {[%clk 0:04:33.8]} 11. Re1 {[%clk
0:04:29.1]} 11... d4 {[%clk 0:04:31.4]} 12. Bd2 {[%clk 0:04:21.2]} 12... g5
{[%clk 0:04:29.9]} 13. Nf3 {[%clk 0:04:19.3]} 13... h6 {[%clk 0:04:27.2]} 14.
Na3 {[%clk 0:04:16.7]} 14... a6 {[%clk 0:04:16.6]} 15. Nc2 {[%clk 0:04:15.2]}
15... Bd6 {[%clk 0:04:13.1]} 16. b4 {[%clk 0:04:13.3]} 16... e5 {[%clk
0:04:01.6]} 17. bxc5 {[%clk 0:03:45.8]} 17... Nxc5 {[%clk 0:03:59.6]} 18. Bb4
{[%clk 0:03:35.8]} 18... Nfd7 {[%clk 0:03:47.7]} 19. Nd2 {[%clk 0:03:26.1]}
19... O-O {[%clk 0:03:38.2]} 20. Bxc5 {[%clk 0:03:19.9]} 20... Nxc5 {[%clk
0:03:36]} 21. b4 {[%clk 0:03:18]} 21... Ne6 {[%clk 0:03:25.7]} 22. c5 {[%clk
0:03:16.1]} 22... Bc7 {[%clk 0:03:22.5]} 23. Bxb7 {[%clk 0:03:13.6]} 23... Rab8
{[%clk 0:03:21.5]} 24. Bxa6 {[%clk 0:03:11]} 24... h5 {[%clk 0:03:16.5]} 25. Bc4
{[%clk 0:03:09.6]} 25... h4 {[%clk 0:03:14.4]} 26. Ne4 {[%clk 0:03:03.1]} 26...
f6 {[%clk 0:03:03.9]} 27. f3 {[%clk 0:02:55.5]} 27... Bh3 {[%clk 0:03:02.8]} 28.
g4 {[%clk 0:02:49.6]} 28... Kf7 {[%clk 0:02:55.4]} 29. Ra6 {[%clk 0:02:44.3]}
29... Rfe8 {[%clk 0:02:52.4]} 30. Rxe6 {[%clk 0:02:34.5]} 30... Rxe6 {[%clk
0:02:51.2]} 31. Bxe6+ {[%clk 0:02:33.2]} 31... Kxe6 {[%clk 0:02:50.4]} 32. Nf2
{[%clk 0:02:32.6]} 32... Bxg4 {[%clk 0:02:45.9]} 33. fxg4 {[%clk 0:02:29.6]}
33... Ra8 {[%clk 0:02:44.7]} 34. Ra1 {[%clk 0:02:27.1]} 34... Rxa1+ {[%clk
0:02:41.7]} 35. Nxa1 {[%clk 0:02:25.7]} 1-0

[Event "Live Chess"]
[Site "Chess.com"]
[Date "2023.05.21"]
[Round "-"]
[White "AttackingSnowLeopard"]
[Black "raimundklein"]
[Result "1-0"]
[WhiteElo "2209"]
[BlackElo "1743"]
[TimeControl "300"]
[EndTime "0:42:40 PDT"]
[Termination "AttackingSnowLeopard won on time"]

1. d4 {[%clk 0:04:58.5]} 1... Nf6 {[%clk 0:04:58.6]} 2. c4 {[%clk 0:04:57.1]}
2... g6 {[%clk 0:04:57.9]} 3. Nc3 {[%clk 0:04:55.4]} 3... Bg7 {[%clk 0:04:57.5]}
4. e4 {[%clk 0:04:54.1]} 4... d5 {[%clk 0:04:56.9]} 5. cxd5 {[%clk 0:04:52.4]}
5... O-O {[%clk 0:04:53]} 6. Be2 {[%clk 0:04:51.1]} 6... c6 {[%clk 0:04:50.9]}
7. dxc6 {[%clk 0:04:47.4]} 7... Nxc6 {[%clk 0:04:48.8]} 8. Be3 {[%clk 0:04:47]}
8... Qa5 {[%clk 0:04:42.9]} 9. Qd2 {[%clk 0:04:42.9]} 9... Ng4 {[%clk
0:04:37.4]} 10. Bxg4 {[%clk 0:04:39.8]} 10... Bxg4 {[%clk 0:04:35.4]} 11. f3
{[%clk 0:04:30.8]} 11... Bd7 {[%clk 0:04:31.2]} 12. Nge2 {[%clk 0:04:20.7]}
12... Rad8 {[%clk 0:04:29.1]} 13. O-O {[%clk 0:04:18.6]} 13... a6 {[%clk
0:04:17.4]} 14. Rac1 {[%clk 0:04:16.2]} 14... b5 {[%clk 0:04:15.2]} 15. a3
{[%clk 0:04:14.8]} 15... b4 {[%clk 0:03:52.2]} 16. axb4 {[%clk 0:04:10.8]} 16...
Nxb4 {[%clk 0:03:52.1]} 17. Ra1 {[%clk 0:04:05.2]} 17... Qb6 {[%clk 0:03:44.8]}
18. d5 {[%clk 0:04:03.8]} 18... Qb7 {[%clk 0:03:43.8]} 19. Bd4 {[%clk
0:04:02.8]} 19... e5 {[%clk 0:03:32.2]} 20. Bc5 {[%clk 0:03:59.8]} 20... Rfe8
{[%clk 0:03:25.9]} 21. Rfc1 {[%clk 0:03:54.2]} 21... a5 {[%clk 0:03:18.9]} 22.
Na4 {[%clk 0:03:40.4]} 22... f5 {[%clk 0:02:37.2]} 23. Nb6 {[%clk 0:03:05.8]}
23... fxe4 {[%clk 0:02:17.2]} 24. fxe4 {[%clk 0:02:59.7]} 24... Na6 {[%clk
0:02:08]} 25. Nxd7 {[%clk 0:02:51.1]} 25... Rxd7 {[%clk 0:02:07.9]} 26. Rxa5
{[%clk 0:02:47.4]} 26... Nxc5 {[%clk 0:02:06.5]} 27. Raxc5 {[%clk 0:02:45]}
27... Qb6 {[%clk 0:02:00.7]} 28. Kh1 {[%clk 0:02:41.8]} 28... Bf8 {[%clk
0:01:56.4]} 29. Rc6 {[%clk 0:02:38.9]} 29... Qb3 {[%clk 0:01:46.4]} 30. R1c3
{[%clk 0:02:33.5]} 30... Qa2 {[%clk 0:01:45.2]} 31. Qc2 {[%clk 0:02:22.9]} 31...
Rb7 {[%clk 0:01:39.4]} 32. Nc1 {[%clk 0:01:57.9]} 32... Qa1 {[%clk 0:01:22.4]}
33. b3 {[%clk 0:01:53.6]} 33... Ba3 {[%clk 0:01:08.4]} 34. g3 {[%clk 0:01:50.6]}
34... Rf7 {[%clk 0:00:51.9]} 35. Kg2 {[%clk 0:01:45.4]} 35... Ref8 {[%clk
0:00:38.1]} 36. Rc8 {[%clk 0:01:44]} 36... Bb4 {[%clk 0:00:15.7]} 37. Rxf8+
{[%clk 0:01:41.4]} 37... Rxf8 {[%clk 0:00:13.9]} 38. Rc8 {[%clk 0:01:39.6]}
38... Qd4 {[%clk 0:00:01.6]} 39. Rxf8+ {[%clk 0:01:37.9]} 39... Bxf8 {[%clk
0:00:00.1]} 40. Ne2 {[%clk 0:01:33.9]} 1-0

[Event "Live Chess"]
[Site "Chess.com"]
[Date "2023.05.21"]
[Round "-"]
[White "Duke_of_Bebington"]
[Black "LutherSullivan"]
[Result "0-1"]
[WhiteElo "1584"]
[BlackElo "2126"]
[TimeControl "300"]
[EndTime "0:42:47 PDT"]
[Termination "LutherSullivan won by resignation"]

1. e4 {[%clk 0:04:56.9]} 1... e5 {[%clk 0:04:58.4]} 2. Nf3 {[%clk 0:04:55.5]}
2... Nc6 {[%clk 0:04:57.8]} 3. Bc4 {[%clk 0:04:54.3]} 3... Nf6 {[%clk
0:04:54.8]} 4. d3 {[%clk 0:04:43.6]} 4... Bc5 {[%clk 0:04:53]} 5. Be3 {[%clk
0:04:41.5]} 5... Bxe3 {[%clk 0:04:50.9]} 6. fxe3 {[%clk 0:04:41.4]} 6... O-O
{[%clk 0:04:50]} 7. O-O {[%clk 0:04:39.8]} 7... d5 {[%clk 0:04:48.8]} 8. exd5
{[%clk 0:04:37.8]} 8... Nxd5 {[%clk 0:04:48.3]} 9. Qe2 {[%clk 0:04:28.9]} 9...
Be6 {[%clk 0:04:43.2]} 10. Bxd5 {[%clk 0:04:24.6]} 10... Qxd5 {[%clk 0:04:37.3]}
11. Nc3 {[%clk 0:04:22.6]} 11... Qd7 {[%clk 0:04:32.4]} 12. e4 {[%clk
0:04:19.6]} 12... Nd4 {[%clk 0:04:30.1]} 13. Qf2 {[%clk 0:04:14.2]} 13... Nxf3+
{[%clk 0:04:18]} 14. Qxf3 {[%clk 0:04:12.7]} 14... f6 {[%clk 0:04:17.4]} 15. Ne2
{[%clk 0:04:00.5]} 15... Qb5 {[%clk 0:04:08.9]} 16. b3 {[%clk 0:03:55]} 16...
Qc5+ {[%clk 0:04:01.9]} 17. Kh1 {[%clk 0:03:50.8]} 17... c6 {[%clk 0:03:58.6]}
18. Rac1 {[%clk 0:03:42.1]} 18... Qa3 {[%clk 0:03:55.7]} 19. Ra1 {[%clk
0:03:39.4]} 19... Qb2 {[%clk 0:03:54]} 20. Rfc1 {[%clk 0:03:26.6]} 20... a5
{[%clk 0:03:41.3]} 21. Ng3 {[%clk 0:03:19.3]} 21... a4 {[%clk 0:03:18.7]} 22. b4
{[%clk 0:03:09.1]} 22... Bxa2 {[%clk 0:03:13]} 23. Nf5 {[%clk 0:03:03.7]} 23...
Be6 {[%clk 0:03:07.3]} 24. Rab1 {[%clk 0:02:53.3]} 24... Qc3 {[%clk 0:02:58.1]}
25. Nd6 {[%clk 0:02:49.2]} 25... a3 {[%clk 0:02:52]} 26. Nxb7 {[%clk 0:02:43]}
26... a2 {[%clk 0:02:44.2]} 27. Ra1 {[%clk 0:02:41.5]} 27... Qxb4 {[%clk
0:02:42.7]} 28. Nc5 {[%clk 0:02:38.9]} 28... Qxc5 {[%clk 0:02:41.3]} 0-1